[Event "Titled Tuesday Blitz October 31 Late 2023"]
[White "Shapiro, Daniel"]
[Black "Aldokhin, Ivan"]
[WhiteFideId "2001780"]
[BlackFideId "24115720"]
[WhiteElo "2328"]
[BlackElo "2555"]
[Result "0-1"]
[Round "5"]
[TimeControl "180+1"]
[Date "2023.10.31"]
[WhiteClock "0:00:00"]
[BlackClock "0:01:34"]
[Board "85"]

1. d4 {[%clk 0:03:00]}  Nf6 {[%clk 0:02:59]} 2. c4 {[%clk 0:03:00]}  g6 {[%clk 0:03:00]} 3. Nc3 {[%clk 0:02:59]}  Bg7 {[%clk 0:03:01]} 4. e4 {[%clk 0:02:59]}  O-O {[%clk 0:03:01]} 5. Be2 {[%clk 0:03:00]}  d6 {[%clk 0:03:02]} 6. Nf3 {[%clk 0:03:00]}  Nc6 {[%clk 0:03:02]} 7. O-O {[%clk 0:02:58]}  Re8 {[%clk 0:03:01]} 8. h3 {[%clk 0:02:45]}  e5 {[%clk 0:03:01]} 9. d5 {[%clk 0:02:42]}  Nd4 {[%clk 0:03:02]} 10. Be3 {[%clk 0:02:30]}  Nxe2+ {[%clk 0:03:01]} 11. Qxe2 {[%clk 0:02:30]}  Nh5 {[%clk 0:03:02]} 12. Nd2 {[%clk 0:02:08]}  Nf4 {[%clk 0:03:01]} 13. Qd1 {[%clk 0:01:37]}  Qg5 {[%clk 0:02:42]} 14. Bxf4 {[%clk 0:01:05]}  exf4 {[%clk 0:02:41]} 15. Qf3 {[%clk 0:01:02]}  Qe5 {[%clk 0:02:27]} 16. Rac1 {[%clk 0:00:56]}  b6 {[%clk 0:02:23]} 17. Nb5 {[%clk 0:00:50]}  Re7 {[%clk 0:02:21]} 18. Rc2 {[%clk 0:00:46]}  a6 {[%clk 0:02:20]} 19. Nc3 {[%clk 0:00:41]}  g5 {[%clk 0:02:19]} 20. Re1 {[%clk 0:00:23]}  Bd7 {[%clk 0:02:13]} 21. Nf1 {[%clk 0:00:22]}  Qf6 {[%clk 0:02:09]} 22. Nh2 {[%clk 0:00:19]}  Qg6 {[%clk 0:02:09]} 23. g4 {[%clk 0:00:17]}  fxg3 {[%clk 0:02:03]} 24. fxg3 {[%clk 0:00:15]}  Rae8 {[%clk 0:02:00]} 25. Ng4 {[%clk 0:00:13]}  h5 {[%clk 0:01:59]} 26. Nf2 {[%clk 0:00:13]}  g4 {[%clk 0:01:59]} 27. hxg4 {[%clk 0:00:11]}  hxg4 {[%clk 0:02:00]} 28. Qg2 {[%clk 0:00:12]}  Bd4 {[%clk 0:01:59]} 29. Nd1 {[%clk 0:00:08]}  Rxe4 {[%clk 0:01:56]} 30. Rxe4 {[%clk 0:00:08]}  Rxe4 {[%clk 0:01:57]} 31. Kf1 {[%clk 0:00:07]}  Re8 {[%clk 0:01:48]} 32. Rd2 {[%clk 0:00:05]}  Bc5 {[%clk 0:01:46]} 33. Re2 {[%clk 0:00:04]}  Rxe2 {[%clk 0:01:45]} 34. Kxe2 {[%clk 0:00:04]}  Qc2+ {[%clk 0:01:45]} 35. Kf1 {[%clk 0:00:05]}  Bf5 {[%clk 0:01:45]} 36. Ke1 {[%clk 0:00:03]}  Bb4+ {[%clk 0:01:40]} 37. Kf1 {[%clk 0:00:03]}  Qxc4+ {[%clk 0:01:36]} 38. Kg1 {[%clk 0:00:03]}  Bc5 {[%clk 0:01:37]} 39. Qh1 {[%clk 0:00:00]}  Qe2 {[%clk 0:01:34]} 0-1


[Site "https://www.chess.com"]

[Event "Titled Tuesday Blitz October 31 Late 2023"]
[White "Fominykh, Maria"]
[Black "Blomqvist, Erik"]
[WhiteFideId "4142411"]
[BlackFideId "1709437"]
[WhiteElo "2315"]
[BlackElo "2555"]
[Result "0-1"]
[Round "5"]
[TimeControl "180+1"]
[Date "2023.10.31"]
[WhiteClock "0:00:00"]
[BlackClock "0:00:15"]
[Board "86"]

1. d4 {[%clk 0:03:00]}  Nf6 {[%clk 0:02:56]} 2. c4 {[%clk 0:03:00]}  e6 {[%clk 0:02:57]} 3. e3 {[%clk 0:02:54]}  d5 {[%clk 0:02:48]} 4. Nf3 {[%clk 0:02:51]}  Be7 {[%clk 0:02:48]} 5. Bd3 {[%clk 0:02:45]}  O-O {[%clk 0:02:41]} 6. O-O {[%clk 0:02:45]}  dxc4 {[%clk 0:02:38]} 7. Bxc4 {[%clk 0:02:44]}  b6 {[%clk 0:02:36]} 8. Nc3 {[%clk 0:02:39]}  Bb7 {[%clk 0:02:37]} 9. Qe2 {[%clk 0:02:39]}  c5 {[%clk 0:02:37]} 10. Rd1 {[%clk 0:02:38]}  cxd4 {[%clk 0:02:36]} 11. Nxd4 {[%clk 0:02:29]}  Qc8 {[%clk 0:02:24]} 12. e4 {[%clk 0:02:14]}  Nc6 {[%clk 0:02:19]} 13. Nxc6 {[%clk 0:01:58]}  Qxc6 {[%clk 0:02:18]} 14. Bb5 {[%clk 0:01:57]}  Qc7 {[%clk 0:02:16]} 15. Bg5 {[%clk 0:01:48]}  h6 {[%clk 0:01:39]} 16. Bh4 {[%clk 0:01:11]}  Rfd8 {[%clk 0:01:38]} 17. Rac1 {[%clk 0:00:46]}  Rxd1+ {[%clk 0:01:06]} 18. Rxd1 {[%clk 0:00:45]}  a6 {[%clk 0:00:52]} 19. Bd3 {[%clk 0:00:30]}  Nxe4 {[%clk 0:00:36]} 20. Bxe4 {[%clk 0:00:18]}  Bxh4 {[%clk 0:00:35]} 21. Bxb7 {[%clk 0:00:15]}  Qxb7 {[%clk 0:00:36]} 22. Qg4 {[%clk 0:00:14]}  Bf6 {[%clk 0:00:35]} 23. Ne4 {[%clk 0:00:09]}  Bxb2 {[%clk 0:00:33]} 24. Rb1 {[%clk 0:00:05]}  Be5 {[%clk 0:00:27]} 25. g3 {[%clk 0:00:02]}  Rc8 {[%clk 0:00:25]} 26. Qf3 {[%clk 0:00:02]}  Qc7 {[%clk 0:00:15]} 27. Qe3 {[%clk 0:00:00]}  b5 {[%clk 0:00:15]} 0-1


[Site "https://www.chess.com"]

[Event "Titled Tuesday Blitz October 31 Late 2023"]
[White "PapaieDudu"]
[Black "dodoucb"]
[WhiteElo "2314"]
[BlackElo "2542"]
[Result "0-1"]
[Round "5"]
[TimeControl "180+1"]
[Date "2023.10.31"]
[WhiteClock "0:00:49"]
[BlackClock "0:01:19"]
[Board "87"]

1. e4 {[%clk 0:03:00]}  c6 {[%clk 0:03:00]} 2. Nf3 {[%clk 0:03:00]}  d5 {[%clk 0:03:01]} 3. e5 {[%clk 0:03:00]}  Bf5 {[%clk 0:03:00]} 4. d4 {[%clk 0:03:01]}  e6 {[%clk 0:03:01]} 5. Be2 {[%clk 0:03:01]}  Nd7 {[%clk 0:03:01]} 6. O-O {[%clk 0:03:01]}  Ne7 {[%clk 0:03:01]} 7. c3 {[%clk 0:03:02]}  h6 {[%clk 0:03:01]} 8. Nbd2 {[%clk 0:03:03]}  c5 {[%clk 0:03:01]} 9. Re1 {[%clk 0:03:03]}  Nc6 {[%clk 0:03:02]} 10. Nf1 {[%clk 0:03:02]}  cxd4 {[%clk 0:03:01]} 11. cxd4 {[%clk 0:03:03]}  Rc8 {[%clk 0:03:00]} 12. h3 {[%clk 0:03:00]}  Be7 {[%clk 0:03:00]} 13. Ne3 {[%clk 0:02:59]}  Bg6 {[%clk 0:02:58]} 14. Bd2 {[%clk 0:02:59]}  Nb4 {[%clk 0:02:53]} 15. Qa4 {[%clk 0:02:54]}  Nd3 {[%clk 0:02:27]} 16. Bxd3 {[%clk 0:02:50]}  Bxd3 {[%clk 0:02:27]} 17. Nxd5 {[%clk 0:02:11]}  exd5 {[%clk 0:02:11]} 18. e6 {[%clk 0:02:10]}  fxe6 {[%clk 0:02:10]} 19. Ne5 {[%clk 0:02:10]}  b5 {[%clk 0:02:03]} 20. Qb3 {[%clk 0:01:56]}  Bc4 {[%clk 0:01:59]} 21. Qg3 {[%clk 0:01:52]}  O-O {[%clk 0:01:54]} 22. Bxh6 {[%clk 0:01:46]}  Bf6 {[%clk 0:01:54]} 23. Ng6 {[%clk 0:01:26]}  Bxd4 {[%clk 0:01:41]} 24. Ne5 {[%clk 0:00:53]}  Bxf2+ {[%clk 0:01:28]} 25. Qxf2 {[%clk 0:00:53]}  Rxf2 {[%clk 0:01:27]} 26. Ng4 {[%clk 0:00:50]}  Rxb2 {[%clk 0:01:19]} 27. Bf4 {[%clk 0:00:49]} 0-1


[Site "https://www.chess.com"]

[Event "Titled Tuesday Blitz October 31 Late 2023"]
[White "Deeper44"]
[Black "Kornyukov, Alexey"]
[BlackFideId "4150457"]
[WhiteElo "2540"]
[BlackElo "2308"]
[Result "0-1"]
[Round "5"]
[TimeControl "180+1"]
[Date "2023.10.31"]
[WhiteClock "0:00:00"]
[BlackClock "0:00:01"]
[Board "88"]

1. d4 {[%clk 0:02:59]}  d5 {[%clk 0:02:58]} 2. c4 {[%clk 0:03:00]}  e6 {[%clk 0:02:58]} 3. Nf3 {[%clk 0:03:00]}  c6 {[%clk 0:02:57]} 4. e3 {[%clk 0:02:59]}  Nf6 {[%clk 0:02:56]} 5. b3 {[%clk 0:02:59]}  Bb4+ {[%clk 0:02:30]} 6. Nbd2 {[%clk 0:02:57]}  Ne4 {[%clk 0:02:23]} 7. Qc2 {[%clk 0:02:57]}  f5 {[%clk 0:02:15]} 8. Bd3 {[%clk 0:02:41]}  Nd7 {[%clk 0:02:12]} 9. O-O {[%clk 0:02:40]}  O-O {[%clk 0:02:05]} 10. a3 {[%clk 0:02:19]}  Bd6 {[%clk 0:01:56]} 11. Bb2 {[%clk 0:02:19]}  Qf6 {[%clk 0:01:56]} 12. b4 {[%clk 0:02:12]}  Qh6 {[%clk 0:01:48]} 13. Ne5 {[%clk 0:02:03]}  Ndf6 {[%clk 0:00:47]} 14. Nxe4 {[%clk 0:01:43]}  dxe4 {[%clk 0:00:43]} 15. Be2 {[%clk 0:01:40]}  f4 {[%clk 0:00:31]} 16. exf4 {[%clk 0:01:34]}  Qxf4 {[%clk 0:00:32]} 17. Bc1 {[%clk 0:01:27]}  Qh4 {[%clk 0:00:31]} 18. Be3 {[%clk 0:01:21]}  Bd7 {[%clk 0:00:21]} 19. Qd2 {[%clk 0:01:15]}  h6 {[%clk 0:00:18]} 20. g3 {[%clk 0:01:07]}  Qh3 {[%clk 0:00:16]} 21. Rfd1 {[%clk 0:01:02]}  Be8 {[%clk 0:00:11]} 22. Bf1 {[%clk 0:00:49]}  Qh5 {[%clk 0:00:10]} 23. Be2 {[%clk 0:00:47]}  Qh3 {[%clk 0:00:10]} 24. Qe1 {[%clk 0:00:20]}  Bxe5 {[%clk 0:00:08]} 25. dxe5 {[%clk 0:00:18]}  Ng4 {[%clk 0:00:08]} 26. Bxg4 {[%clk 0:00:17]}  Qxg4 {[%clk 0:00:09]} 27. Rd4 {[%clk 0:00:13]}  Bg6 {[%clk 0:00:08]} 28. f4 {[%clk 0:00:10]}  Bh5 {[%clk 0:00:05]} 29. Qf2 {[%clk 0:00:09]}  Qf5 {[%clk 0:00:05]} 30. Re1 {[%clk 0:00:07]}  Rad8 {[%clk 0:00:04]} 31. Qd2 {[%clk 0:00:08]}  Rxd4 {[%clk 0:00:03]} 32. Qxd4 {[%clk 0:00:08]}  Bf3 {[%clk 0:00:03]} 33. Qd2 {[%clk 0:00:06]}  Qh3 {[%clk 0:00:02]} 34. Qf2 {[%clk 0:00:00]}  Rd8 {[%clk 0:00:01]} 0-1


[Site "https://www.chess.com"]

[Event "Titled Tuesday Blitz October 31 Late 2023"]
[White "Quirke, Jeffrey"]
[Black "Shubenkova, Veronika"]
[WhiteFideId "2013029"]
[BlackFideId "44124040"]
[WhiteElo "2242"]
[BlackElo "2530"]
[Result "0-1"]
[Round "5"]
[TimeControl "180+1"]
[Date "2023.10.31"]
[WhiteClock "0:00:18"]
[BlackClock "0:01:35"]
[Board "92"]

1. e4 {[%clk 0:03:00]}  e6 {[%clk 0:03:00]} 2. f4 {[%clk 0:02:57]}  d5 {[%clk 0:02:59]} 3. e5 {[%clk 0:02:57]}  c5 {[%clk 0:03:00]} 4. c3 {[%clk 0:02:56]}  Nc6 {[%clk 0:02:58]} 5. Nf3 {[%clk 0:02:56]}  Nge7 {[%clk 0:02:56]} 6. Be2 {[%clk 0:02:54]}  Ng6 {[%clk 0:02:57]} 7. d3 {[%clk 0:02:52]}  Be7 {[%clk 0:02:55]} 8. O-O {[%clk 0:02:51]}  O-O {[%clk 0:02:54]} 9. Na3 {[%clk 0:02:52]}  f6 {[%clk 0:02:51]} 10. d4 {[%clk 0:02:45]}  cxd4 {[%clk 0:02:51]} 11. cxd4 {[%clk 0:02:45]}  fxe5 {[%clk 0:02:51]} 12. fxe5 {[%clk 0:02:42]}  Nf4 {[%clk 0:02:49]} 13. Bxf4 {[%clk 0:02:39]}  Rxf4 {[%clk 0:02:50]} 14. Kh1 {[%clk 0:02:32]}  Bd7 {[%clk 0:02:44]} 15. Nc2 {[%clk 0:02:28]}  Qb6 {[%clk 0:02:43]} 16. Qd2 {[%clk 0:02:25]}  Raf8 {[%clk 0:02:42]} 17. b3 {[%clk 0:02:15]}  a5 {[%clk 0:02:36]} 18. g3 {[%clk 0:02:00]}  R4f7 {[%clk 0:02:34]} 19. Ng5 {[%clk 0:01:55]}  Rxf1+ {[%clk 0:02:31]} 20. Rxf1 {[%clk 0:01:54]}  Rxf1+ {[%clk 0:02:30]} 21. Bxf1 {[%clk 0:01:55]}  h6 {[%clk 0:02:17]} 22. Nf3 {[%clk 0:01:54]}  a4 {[%clk 0:02:16]} 23. bxa4 {[%clk 0:01:46]}  Na5 {[%clk 0:02:16]} 24. Bd3 {[%clk 0:01:39]}  Nc4 {[%clk 0:02:11]} 25. Bxc4 {[%clk 0:01:19]}  dxc4 {[%clk 0:02:12]} 26. d5 {[%clk 0:01:20]}  Qb1+ {[%clk 0:02:09]} 27. Kg2 {[%clk 0:01:19]}  Bxa4 {[%clk 0:01:49]} 28. Ne3 {[%clk 0:01:09]}  Bb4 {[%clk 0:01:45]} 29. Qd4 {[%clk 0:01:02]}  c3 {[%clk 0:01:39]} 30. dxe6 {[%clk 0:00:47]}  c2 {[%clk 0:01:38]} 31. Qd8+ {[%clk 0:00:45]}  Kh7 {[%clk 0:01:37]} 32. Nxc2 {[%clk 0:00:34]}  Qxc2+ {[%clk 0:01:37]} 33. Kh3 {[%clk 0:00:21]}  Qf5+ {[%clk 0:01:36]} 34. Kg2 {[%clk 0:00:18]}  Bc6 {[%clk 0:01:35]} 0-1


[Site "https://www.chess.com"]

[Event "Titled Tuesday Blitz October 31 Late 2023"]
[White "Ward, Ieuan C"]
[Black "Souza, Gustavo Horokoski De"]
[WhiteFideId "406627"]
[BlackFideId "2146584"]
[WhiteElo "2335"]
[BlackElo "2195"]
[Result "0-1"]
[Round "5"]
[TimeControl "180+1"]
[Date "2023.10.31"]
[WhiteClock "0:00:11"]
[BlackClock "0:00:20"]
[Board "94"]

1. d4 {[%clk 0:03:00]}  Nf6 {[%clk 0:02:56]} 2. c4 {[%clk 0:03:00]}  c5 {[%clk 0:02:55]} 3. d5 {[%clk 0:03:00]}  e6 {[%clk 0:02:55]} 4. Nc3 {[%clk 0:03:00]}  exd5 {[%clk 0:02:56]} 5. cxd5 {[%clk 0:03:01]}  d6 {[%clk 0:02:56]} 6. e4 {[%clk 0:03:01]}  g6 {[%clk 0:02:57]} 7. Nf3 {[%clk 0:03:01]}  Bg4 {[%clk 0:02:56]} 8. Bd3 {[%clk 0:03:00]}  Bg7 {[%clk 0:02:55]} 9. O-O {[%clk 0:03:00]}  O-O {[%clk 0:02:55]} 10. Re1 {[%clk 0:02:58]}  Re8 {[%clk 0:02:54]} 11. Bf4 {[%clk 0:02:51]}  Qe7 {[%clk 0:02:52]} 12. e5 {[%clk 0:02:37]}  Nh5 {[%clk 0:02:36]} 13. exd6 {[%clk 0:02:03]}  Qxe1+ {[%clk 0:02:33]} 14. Qxe1 {[%clk 0:01:28]}  Rxe1+ {[%clk 0:02:32]} 15. Rxe1 {[%clk 0:01:24]}  Nxf4 {[%clk 0:02:31]} 16. Re8+ {[%clk 0:01:22]}  Bf8 {[%clk 0:02:31]} 17. Bb5 {[%clk 0:01:12]}  Kg7 {[%clk 0:02:22]} 18. d7 {[%clk 0:00:58]}  Nxd7 {[%clk 0:01:45]} 19. Rxa8 {[%clk 0:00:57]}  Bxf3 {[%clk 0:01:44]} 20. gxf3 {[%clk 0:00:44]}  Ne5 {[%clk 0:01:44]} 21. Be2 {[%clk 0:00:33]}  Nxe2+ {[%clk 0:01:32]} 22. Nxe2 {[%clk 0:00:34]}  Nxf3+ {[%clk 0:01:32]} 23. Kg2 {[%clk 0:00:32]}  Nh4+ {[%clk 0:01:32]} 24. Kh3 {[%clk 0:00:25]}  Nf5 {[%clk 0:01:25]} 25. Rxa7 {[%clk 0:00:25]}  b5 {[%clk 0:01:24]} 26. Nc3 {[%clk 0:00:20]}  b4 {[%clk 0:01:23]} 27. Ne4 {[%clk 0:00:20]}  h5 {[%clk 0:01:18]} 28. f4 {[%clk 0:00:19]}  Ne3 {[%clk 0:01:12]} 29. d6 {[%clk 0:00:18]}  Nf5 {[%clk 0:00:52]} 30. d7 {[%clk 0:00:15]}  Be7 {[%clk 0:00:52]} 31. Nxc5 {[%clk 0:00:15]}  Bxc5 {[%clk 0:00:51]} 32. d8=Q {[%clk 0:00:12]}  Bxa7 {[%clk 0:00:51]} 33. Qa5 {[%clk 0:00:11]}  Bd4 {[%clk 0:00:47]} 34. Qxb4 {[%clk 0:00:10]}  Bf6 {[%clk 0:00:47]} 35. a4 {[%clk 0:00:10]}  Be7 {[%clk 0:00:46]} 36. Qc3+ {[%clk 0:00:10]}  Bf6 {[%clk 0:00:45]} 37. Qb3 {[%clk 0:00:10]}  Nd4 {[%clk 0:00:45]} 38. Qa2 {[%clk 0:00:10]}  Ne2 {[%clk 0:00:41]} 39. Qc4 {[%clk 0:00:07]}  Nd4 {[%clk 0:00:39]} 40. a5 {[%clk 0:00:07]}  Ne6 {[%clk 0:00:40]} 41. a6 {[%clk 0:00:06]}  g5 {[%clk 0:00:40]} 42. fxg5 {[%clk 0:00:04]}  Nxg5+ {[%clk 0:00:37]} 43. Kg2 {[%clk 0:00:03]}  h4 {[%clk 0:00:33]} 44. a7 {[%clk 0:00:03]}  h3+ {[%clk 0:00:33]} 45. Kf1 {[%clk 0:00:04]}  Nf3 {[%clk 0:00:31]} 46. Qg4+ {[%clk 0:00:02]}  Ng5 {[%clk 0:00:31]} 47. Qf3 {[%clk 0:00:03]}  Nxf3 {[%clk 0:00:31]} 48. a8=Q {[%clk 0:00:04]}  Nd4 {[%clk 0:00:31]} 49. Qe4 {[%clk 0:00:04]}  Ne6 {[%clk 0:00:30]} 50. Qg4+ {[%clk 0:00:04]}  Ng5 {[%clk 0:00:30]} 51. Qxh3 {[%clk 0:00:05]}  Nxh3 {[%clk 0:00:30]} 52. Kg2 {[%clk 0:00:03]}  Ng5 {[%clk 0:00:30]} 53. b4 {[%clk 0:00:04]}  Bd4 {[%clk 0:00:30]} 54. h4 {[%clk 0:00:05]}  Ne6 {[%clk 0:00:30]} 55. Kf3 {[%clk 0:00:05]}  Bb6 {[%clk 0:00:31]} 56. Ke4 {[%clk 0:00:06]}  Kf6 {[%clk 0:00:30]} 57. Kd5 {[%clk 0:00:06]}  Bf2 {[%clk 0:00:25]} 58. h5 {[%clk 0:00:06]}  Kg7 {[%clk 0:00:21]} 59. b5 {[%clk 0:00:05]}  Nf4+ {[%clk 0:00:19]} 60. Ke5 {[%clk 0:00:05]}  Nxh5 {[%clk 0:00:19]} 61. Kf5 {[%clk 0:00:05]}  Bb6 {[%clk 0:00:19]} 62. Kg5 {[%clk 0:00:06]}  Nf6 {[%clk 0:00:19]} 63. Kf5 {[%clk 0:00:06]}  Ne8 {[%clk 0:00:19]} 64. Ke5 {[%clk 0:00:07]}  Nc7 {[%clk 0:00:20]} 65. Kd6 {[%clk 0:00:07]}  Nxb5+ {[%clk 0:00:20]} 66. Kc6 {[%clk 0:00:08]}  f5 {[%clk 0:00:20]} 67. Kxb5 {[%clk 0:00:08]}  f4 {[%clk 0:00:20]} 68. Kc4 {[%clk 0:00:09]}  f3 {[%clk 0:00:21]} 69. Kd3 {[%clk 0:00:10]}  f2 {[%clk 0:00:21]} 70. Ke2 {[%clk 0:00:11]}  Kf6 {[%clk 0:00:22]} 71. Kf1 {[%clk 0:00:12]}  Kf5 {[%clk 0:00:22]} 72. Ke2 {[%clk 0:00:12]}  Ke4 {[%clk 0:00:20]} 73. Kf1 {[%clk 0:00:13]}  Ke3 {[%clk 0:00:20]} 74. Kg2 {[%clk 0:00:11]}  Ke2 {[%clk 0:00:20]} 0-1


[Site "https://www.chess.com"]

[Event "Titled Tuesday Blitz October 31 Late 2023"]
[White "Mekhitarian, Krikor Sevag"]
[Black "Belenkaya, Dina"]
[WhiteFideId "2107660"]
[BlackFideId "24142654"]
[WhiteElo "2745"]
[BlackElo "2434"]
[Result "1-0"]
[Round "5"]
[TimeControl "180+1"]
[Date "2023.10.31"]
[WhiteClock "0:00:20"]
[BlackClock "0:00:06"]
[Board "96"]

1. Nf3 {[%clk 0:03:00]}  d5 {[%clk 0:02:58]} 2. c4 {[%clk 0:03:00]}  dxc4 {[%clk 0:02:52]} 3. e3 {[%clk 0:02:57]}  Nf6 {[%clk 0:02:50]} 4. Bxc4 {[%clk 0:02:58]}  a6 {[%clk 0:02:47]} 5. O-O {[%clk 0:02:47]}  e6 {[%clk 0:02:46]} 6. b3 {[%clk 0:02:43]}  c5 {[%clk 0:02:39]} 7. Bb2 {[%clk 0:02:43]}  Bd6 {[%clk 0:02:38]} 8. Be2 {[%clk 0:02:41]}  Nc6 {[%clk 0:02:33]} 9. d3 {[%clk 0:02:41]}  O-O {[%clk 0:02:33]} 10. Nbd2 {[%clk 0:02:41]}  b6 {[%clk 0:02:33]} 11. a3 {[%clk 0:02:41]}  Bb7 {[%clk 0:02:33]} 12. Rc1 {[%clk 0:02:41]}  Qb8 {[%clk 0:02:29]} 13. Nc4 {[%clk 0:02:34]}  Bc7 {[%clk 0:02:28]} 14. h3 {[%clk 0:02:35]}  Nd5 {[%clk 0:02:19]} 15. Qc2 {[%clk 0:02:31]}  Rc8 {[%clk 0:02:05]} 16. Rfe1 {[%clk 0:02:30]}  b5 {[%clk 0:02:04]} 17. Ncd2 {[%clk 0:02:30]}  Ne5 {[%clk 0:02:01]} 18. Qb1 {[%clk 0:02:21]}  Bd6 {[%clk 0:01:32]} 19. Qa1 {[%clk 0:02:06]}  Nxf3+ {[%clk 0:01:31]} 20. Bxf3 {[%clk 0:02:06]}  f6 {[%clk 0:01:31]} 21. Rc2 {[%clk 0:02:03]}  a5 {[%clk 0:01:27]} 22. Rec1 {[%clk 0:01:55]}  Qa7 {[%clk 0:01:12]} 23. Ne4 {[%clk 0:01:31]}  Be7 {[%clk 0:01:12]} 24. d4 {[%clk 0:01:31]}  cxd4 {[%clk 0:00:58]} 25. Bxd4 {[%clk 0:01:32]}  Qa6 {[%clk 0:00:55]} 26. Bc5 {[%clk 0:00:59]}  Bxc5 {[%clk 0:00:20]} 27. Nxc5 {[%clk 0:00:59]}  Qc6 {[%clk 0:00:18]} 28. Qd4 {[%clk 0:00:40]}  Rd8 {[%clk 0:00:14]} 29. Qg4 {[%clk 0:00:26]}  Ra7 {[%clk 0:00:11]} 30. Nxe6 {[%clk 0:00:24]}  Rd7 {[%clk 0:00:09]} 31. Rxc6 {[%clk 0:00:23]}  Bxc6 {[%clk 0:00:09]} 32. Rxc6 {[%clk 0:00:20]}  Ne7 {[%clk 0:00:06]} 1-0


[Site "https://www.chess.com"]

[Event "Titled Tuesday Blitz October 31 Late 2023"]
[White "Pinto, Daniel"]
[Black "Martinez Ramirez, Lennis"]
[WhiteFideId "3303144"]
[BlackFideId "3509079"]
[WhiteElo "2415"]
[BlackElo "2689"]
[Result "0-1"]
[Round "5"]
[TimeControl "180+1"]
[Date "2023.10.31"]
[WhiteClock "0:00:00"]
[BlackClock "0:02:28"]
[Board "97"]

1. e4 {[%clk 0:03:00]}  c5 {[%clk 0:02:59]} 2. Nf3 {[%clk 0:03:00]}  Nc6 {[%clk 0:02:59]} 3. Bb5 {[%clk 0:03:00]}  g6 {[%clk 0:02:59]} 4. O-O {[%clk 0:02:58]}  Bg7 {[%clk 0:02:59]} 5. Re1 {[%clk 0:02:58]}  Nf6 {[%clk 0:02:59]} 6. e5 {[%clk 0:02:56]}  Nd5 {[%clk 0:02:59]} 7. Nc3 {[%clk 0:02:57]}  Nc7 {[%clk 0:02:58]} 8. Bxc6 {[%clk 0:02:57]}  dxc6 {[%clk 0:02:59]} 9. h3 {[%clk 0:02:57]}  O-O {[%clk 0:02:59]} 10. d3 {[%clk 0:02:56]}  Ne6 {[%clk 0:03:00]} 11. Ne4 {[%clk 0:02:35]}  f5 {[%clk 0:02:56]} 12. Neg5 {[%clk 0:01:57]}  h6 {[%clk 0:02:55]} 13. Nxe6 {[%clk 0:01:57]}  Bxe6 {[%clk 0:02:56]} 14. Be3 {[%clk 0:01:57]}  Qd5 {[%clk 0:02:52]} 15. c4 {[%clk 0:01:41]}  Qd7 {[%clk 0:02:51]} 16. Bxc5 {[%clk 0:01:41]}  b6 {[%clk 0:02:52]} 17. Ba3 {[%clk 0:01:10]}  Rad8 {[%clk 0:02:50]} 18. b3 {[%clk 0:01:11]}  c5 {[%clk 0:02:48]} 19. Bb2 {[%clk 0:01:03]}  Qxd3 {[%clk 0:02:47]} 20. Qxd3 {[%clk 0:00:31]}  Rxd3 {[%clk 0:02:48]} 21. Red1 {[%clk 0:00:32]}  Rfd8 {[%clk 0:02:48]} 22. Rxd3 {[%clk 0:00:32]}  Rxd3 {[%clk 0:02:49]} 23. Kf1 {[%clk 0:00:33]}  f4 {[%clk 0:02:49]} 24. Ke2 {[%clk 0:00:21]}  Rd8 {[%clk 0:02:46]} 25. Rd1 {[%clk 0:00:15]}  Rxd1 {[%clk 0:02:46]} 26. Kxd1 {[%clk 0:00:16]}  Bf5 {[%clk 0:02:47]} 27. Nd2 {[%clk 0:00:15]}  Bd3 {[%clk 0:02:46]} 28. Ke1 {[%clk 0:00:07]}  Kf7 {[%clk 0:02:46]} 29. Nf3 {[%clk 0:00:07]}  Ke6 {[%clk 0:02:35]} 30. Kd2 {[%clk 0:00:05]}  Bb1 {[%clk 0:02:34]} 31. Kc1 {[%clk 0:00:03]}  Bd3 {[%clk 0:02:30]} 32. Kd2 {[%clk 0:00:02]}  Bf1 {[%clk 0:02:30]} 33. Ne1 {[%clk 0:00:01]}  Bxe5 {[%clk 0:02:28]} 34. Bxe5 {[%clk 0:00:02]}  Kxe5 {[%clk 0:02:29]} 35. Kc3 {[%clk 0:00:02]}  Ke4 {[%clk 0:02:28]} 36. Kd2 {[%clk 0:00:02]}  e5 {[%clk 0:02:28]} 37. a3 {[%clk 0:00:02]}  g5 {[%clk 0:02:28]} 38. Kc3 {[%clk 0:00:02]}  h5 {[%clk 0:02:28]} 39. Kd2 {[%clk 0:00:02]}  g4 {[%clk 0:02:29]} 40. hxg4 {[%clk 0:00:03]}  hxg4 {[%clk 0:02:29]} 41. Kc3 {[%clk 0:00:00]}  g3 {[%clk 0:02:28]} 0-1


[Site "https://www.chess.com"]

[Event "Titled Tuesday Blitz October 31 Late 2023"]
[White "Colivet Gamboa, Julio Cesar"]
[Black "D`Arruda, Ricardo D."]
[WhiteFideId "3949583"]
[BlackFideId "100692"]
[WhiteElo "2370"]
[BlackElo "2523"]
[Result "1-0"]
[Round "5"]
[TimeControl "180+1"]
[Date "2023.10.31"]
[WhiteClock "0:01:14"]
[BlackClock "0:01:09"]
[Board "100"]

1. e4 {[%clk 0:02:58]}  c5 {[%clk 0:02:57]} 2. Nf3 {[%clk 0:02:57]}  Nc6 {[%clk 0:02:57]} 3. d4 {[%clk 0:02:57]}  cxd4 {[%clk 0:02:57]} 4. Nxd4 {[%clk 0:02:58]}  e5 {[%clk 0:02:57]} 5. Nb3 {[%clk 0:02:56]}  Nf6 {[%clk 0:02:56]} 6. Nc3 {[%clk 0:02:56]}  Bb4 {[%clk 0:02:56]} 7. Bd3 {[%clk 0:02:46]}  d5 {[%clk 0:02:55]} 8. exd5 {[%clk 0:02:45]}  Nxd5 {[%clk 0:02:39]} 9. Bd2 {[%clk 0:02:39]}  Nxc3 {[%clk 0:02:39]} 10. bxc3 {[%clk 0:02:38]}  Be7 {[%clk 0:02:38]} 11. O-O {[%clk 0:02:38]}  O-O {[%clk 0:02:37]} 12. Re1 {[%clk 0:02:34]}  Be6 {[%clk 0:02:34]} 13. Rb1 {[%clk 0:02:31]}  Qd7 {[%clk 0:02:29]} 14. Qh5 {[%clk 0:02:28]}  g6 {[%clk 0:02:28]} 15. Qh6 {[%clk 0:02:27]}  f5 {[%clk 0:02:24]} 16. Bg5 {[%clk 0:02:23]}  a6 {[%clk 0:02:03]} 17. Bxe7 {[%clk 0:02:19]}  Qxe7 {[%clk 0:02:03]} 18. f3 {[%clk 0:02:04]}  b6 {[%clk 0:01:56]} 19. Nd2 {[%clk 0:02:01]}  Qc5+ {[%clk 0:01:43]} 20. Kh1 {[%clk 0:01:59]}  b5 {[%clk 0:01:37]} 21. Qe3 {[%clk 0:01:40]}  Qxe3 {[%clk 0:01:36]} 22. Rxe3 {[%clk 0:01:40]}  Rfd8 {[%clk 0:01:33]} 23. a4 {[%clk 0:01:33]}  bxa4 {[%clk 0:01:32]} 24. Ra1 {[%clk 0:01:34]}  Rab8 {[%clk 0:01:15]} 25. Rxa4 {[%clk 0:01:31]}  a5 {[%clk 0:01:16]} 26. h4 {[%clk 0:01:29]}  Kf7 {[%clk 0:01:16]} 27. Nb3 {[%clk 0:01:14]}  Bxb3 {[%clk 0:01:12]} 28. cxb3 {[%clk 0:01:14]}  Rxb3 {[%clk 0:01:09]} 29. Bc4+ {[%clk 0:01:14]} 1-0


[Site "https://www.chess.com"]